bitfinex-derivatives/quotes_SOLF0:USTF0_20250530
["timestamp","ask_amount","ask_price","bid_price","bid_amount"]
[1748566893323,6.0556,162.92,162.6,19.45176675]
[1748566893623,19.45176675,162.9,162.6,19.45176675]
[1748566893823,0.0460763,162.77,162.73,0.04363383]
[1748566894018,0.04298866,162.77,162.73,0.04519015]
[1748566894213,19.23147938,162.9,162.73,0.04519015]
[1748566894521,19.23147938,162.9,162.59,1.9779]
[1748566894522,19.44881506,162.9,162.65,62.0]
[1748566894716,19.45039056,162.9,162.65,62.0]
[1748566894917,19.44923947,162.9,162.65,62.0]
[1748566895118,0.0429122,162.79,162.76,0.04092204]
[1748566895322,19.44923947,162.9,162.65,62.0]
[1748566895522,0.04436403,162.79,162.76,0.04044923]
[1748566895725,0.03925285,162.79,162.76,0.04172167]
[1748566895920,6.17925285,162.79,162.59,1.9779]
[1748566896128,19.46518828,162.83,162.59,1.9779]
[1748566896332,19.46147531,162.84,162.59,1.9779]
[1748566896524,19.30962775,162.84,162.59,1.9779]
[1748566896721,19.45991667,162.86,162.59,1.9779]
[1748566897026,0.04263099,162.74,162.71,0.04241017]
[1748566897228,0.04398616,162.74,162.71,0.04237216]
[1748566897935,6.0556,162.92,162.71,0.04237216]
[1748566898135,6.0556,162.92,162.59,1.9779]
[1748566898330,19.45869364,162.88,162.59,1.9779]
[1748566898822,0.04156982,162.75,162.72,0.04484006]
[1748566899018,0.03990503,162.75,162.72,0.04223715]
[1748566901125,0.03990503,162.75,162.59,1.9779]
[1748566901325,19.45869364,162.82,162.59,1.9779]
[1748566901523,2.073,162.81,162.59,1.9779]
[1748566901928,2.0239,162.8,162.59,1.9779]
[1748566902332,0.04142722,162.71,162.68,0.0450923]
[1748566902523,0.04324093,162.71,162.68,0.0462541]
[1748566902925,2.0239,162.8,162.69,62.0]
[1748566903231,37.9044671,163.4,162.69,62.0]
[1748566903232,19.44788492,162.92,162.69,62.0]
[1748566903445,4.0969,162.86,162.69,62.0]
[1748566903835,4.0969,162.86,162.59,1.9779]
[1748566904030,0.04444279,162.74,162.71,0.0433411]
[1748566904227,0.04113625,162.74,162.71,0.03898364]
[1748566905141,4.0969,162.86,162.72,17.35198681]
[1748566905628,4.0969,162.86,162.7,530.68]
[1748566905832,4.0969,162.86,162.71,17.35198681]
[1748566906134,0.04092753,162.8,162.77,0.04700151]
[1748566906832,17.35198681,162.95,162.77,62.04700151]
[1748566906833,3.43964347,162.94,162.77,62.04700151]
[1748566907128,17.35198681,162.95,162.77,62.0]
[1748566907432,17.32810314,162.94,162.71,1.9784]
[1748566907635,17.33351226,162.92,162.73,17.33351226]
[1748566907832,17.33112621,162.93,162.81,0.0413176]
[1748566908023,17.33112621,162.92,162.85,0.04271362]
[1748566908222,4.1172,162.97,162.87,0.04325485]
[1748566908223,17.33225895,162.93,162.87,0.04325485]
[1748566908437,4.1172,162.97,162.88,0.04142677]
[1748566908627,4.1172,162.97,162.71,1.9784]
[1748566908628,17.32722552,162.94,162.71,1.9784]
[1748566908837,17.32722552,162.9,162.7,530.68]
[1748566909033,17.32722552,162.86,162.7,530.68]
[1748566909333,6.218,162.85,162.7,530.68]
[1748566909641,0.03982418,162.79,162.76,0.04603466]
[1748566910639,2.0491,162.9,162.76,0.04603466]
[1748566910844,2.0491,162.9,162.75,17.32691246]
[1748566911638,17.32691246,162.87,162.7,530.68]
[1748566911842,4.0603,162.86,162.7,530.68]
[1748566912145,4.0603,162.86,162.76,0.04057821]
[1748566912337,4.0603,162.86,162.79,0.0446789]
[1748566916747,2.1187,162.86,162.79,0.0446789]
[1748566916952,2.0491,162.9,162.79,0.0446789]
[1748566917147,2.0491,162.9,162.83,0.04515997]
[1748566917334,2.0491,162.9,162.85,0.0460812]
[1748566917742,2.0491,162.9,162.7,534.6357]
[1748566917945,2.0491,162.9,162.71,79.3367879]
[1748566918145,2.0491,162.9,162.75,17.32751429]
[1748566918942,2.0491,162.9,162.81,0.04330581]
[1748566918943,0.04274113,162.84,162.81,0.04330581]
[1748566919653,3.96,162.98,162.81,0.04330581]
[1748566919861,3.96,162.98,162.79,17.32751429]
[1748566920252,3.96,162.98,162.7,530.68]
[1748566920446,17.32751429,162.95,162.78,17.32751429]
[1748566920642,17.32751429,162.95,162.85,0.04364107]
[1748566920850,22.09347006,162.94,162.88,0.03878244]
[1748566921058,53.29502858,162.91,162.64,38.17052654]
[1748566921356,17.32751429,162.83,162.66,62.0]
[1748566921869,17.32751429,162.79,162.64,20.84301225]
[1748566922064,0.04067417,162.73,162.55,17.32751429]
[1748566922267,17.32751429,162.75,162.52,547.82751429]
[1748566922474,17.32751429,162.71,162.52,530.5]
[1748566922772,4.0348,162.7,162.52,530.5]
[1748566922968,6.1482,162.7,162.52,530.5]
[1748566923162,6.1482,162.7,162.46,2.0393]
[1748566923163,0.0410214,162.64,162.46,2.0393]
[1748566923450,17.32751429,162.67,162.43,1.9546]
[1748566923653,17.39305616,162.63,162.44,17.39305616]
[1748566923857,6.1482,162.7,162.48,17.39307398]
[1748566924151,6.1482,162.7,162.54,17.37296286]
[1748566924354,0.03930079,162.61,162.54,17.37296286]
[1748566924556,0.03930079,162.61,162.55,17.37296286]
[1748566924744,0.0431883,162.6,162.56,0.03986992]
[1748566924955,0.04274422,162.6,162.56,0.04560017]
[1748566926063,0.04274422,162.6,162.43,1.9546]
[1748566926272,2.0715,162.6,162.43,19.35105119]
[1748566926472,2.0715,162.6,162.43,1.9546]
[1748566926657,2.0715,162.6,162.45,17.38927729]
[1748566927052,0.04328457,162.54,162.51,0.0466458]
[1748566927582,19.45947515,162.69,162.51,17.43462095]
[1748566927857,19.45947515,162.69,162.51,17.38797515]
[1748566928155,17.38610435,162.66,162.47,17.38610435]
[1748566928345,2.0715,162.69,162.46,17.38888747]
[1748566928346,17.38888747,162.65,162.46,17.38888747]
[1748566928655,0.04674622,162.57,162.54,0.04649144]
[1748566928853,0.04527039,162.57,162.54,0.04616859]
[1748566929673,2.0715,162.69,162.56,17.36580111]
[1748566929879,2.0715,162.69,162.47,17.36580111]
[1748566929880,4.0348,162.7,162.58,17.36351045]
[1748566930264,4.0348,162.7,162.6,17.35976368]
[1748566930474,2.0886,162.76,162.62,17.35472124]
[1748566930772,0.04022284,162.71,162.67,0.04079051]
[1748566931062,0.04022284,162.71,162.67,0.0457445]
[1748566931063,0.03951318,162.71,162.67,0.0457445]
[1748566931353,0.03951318,162.71,162.56,17.35472124]
[1748566931551,17.35472124,162.73,162.56,17.35472124]
[1748566931759,17.37958669,162.69,162.53,530.94]
[1748566932153,0.0390061,162.63,162.59,0.04086588]
[1748566932358,17.390504,162.64,162.45,17.390504]
[1748566932749,17.3916515,162.64,162.46,62.0]
[1748566933055,17.3916515,162.64,162.44,17.3916515]
[1748566933355,17.3916515,162.6,162.43,530.94]
[1748566933568,0.04188618,162.53,162.37,17.40693971]
[1748566933871,1.9868,162.55,162.37,17.40693971]
[1748566934756,0.04070884,162.48,162.44,0.04263894]
[1748566934955,0.04070884,162.48,162.44,0.04074552]
[1748566935554,17.40693971,162.63,162.44,17.44768523]
[1748566935763,2.0799,162.62,162.43,17.39092062]
[1748566935967,17.40168299,162.59,162.39,17.40168299]
[1748566936252,17.40160172,162.59,162.4,17.40160172]
[1748566936460,4.1758,162.58,162.4,17.40160172]
[1748566936774,0.04157903,162.51,162.47,0.03911291]
[1748566937075,0.04157903,162.51,162.47,0.04196583]
[1748566937269,2.0799,162.64,162.47,0.04196583]
[1748566937462,4.1758,162.64,162.44,17.38497265]
[1748566937879,4.1758,162.64,162.5,17.37879005]
[1748566938074,4.1758,162.64,162.45,531.18]
[1748566938269,0.04283158,162.56,162.53,0.03987215]
[1748566938463,0.04283158,162.56,162.53,0.04539122]
[1748566938464,0.04685556,162.56,162.53,0.04539122]
[1748566938984,531.18,162.74,162.54,62.0]
[1748566939158,17.37102615,162.7,162.54,62.0]
[1748566939355,23.53340922,162.73,162.54,62.0]
[1748566939752,6.161,162.73,162.54,62.0]
[1748566939957,0.0443842,162.65,162.62,0.04068711]
[1748566940162,0.04226991,162.65,162.62,0.04352547]
[1748566940360,4.0293,162.73,162.62,17.39840435]
[1748566940557,4.0293,162.73,162.59,17.35487888]
[1748566940772,4.0293,162.73,162.56,548.53487888]
[1748566941155,21.40078242,162.73,162.56,531.18]
[1748566941467,0.04070118,162.66,162.63,0.0404806]
[1748566941661,0.04070118,162.66,162.63,0.03966494]
[1748566941662,0.04088693,162.66,162.63,0.03966494]
[1748566942667,0.04088693,162.66,162.47,531.18]
[1748566942668,6.18088693,162.66,162.48,17.37332486]
[1748566942856,17.37332486,162.68,162.48,17.37332486]
[1748566943065,2.0375,162.67,162.48,17.37332486]
[1748566943355,17.37332486,162.64,162.47,531.18]
[1748566943573,17.40033899,162.6,162.39,531.14]
[1748566943785,1.9568,162.59,162.39,531.14]
[1748566943968,17.40746363,162.56,162.39,531.14]
[1748566944158,2.0123,162.55,162.39,531.14]
[1748566944363,19.42311023,162.55,162.39,531.14]
[1748566944753,0.04537035,162.49,162.45,0.0417994]
[1748566944976,0.04537035,162.49,162.45,0.04378008]
[1748566950575,2.0331,162.58,162.45,0.04378008]
[1748566950764,1.9568,162.59,162.47,17.40287328]
[1748566950971,1.9568,162.59,162.4,2.0188]
[1748566951169,1.9568,162.59,162.42,17.40287328]
[1748566951565,0.03954704,162.52,162.49,0.04514601]
[1748566951769,1.9568,162.59,162.42,17.40287328]
[1748566951968,0.04651588,162.52,162.42,17.40287328]
[1748566952266,0.04340349,162.49,162.45,0.04014734]
[1748566952475,0.04573432,162.49,162.45,0.04355848]
[1748566954177,230.25649582,162.8,162.45,211.54355848]
[1748566954365,4.1758,162.66,162.48,17.39495108]
[1748566955063,4.1758,162.66,162.48,17.38485244]
[1748566955270,0.04156045,162.59,162.55,0.0404372]
[1748566955575,0.04156045,162.59,162.55,0.04090884]
[1748566956983,6.20156045,162.59,162.41,531.46]
[1748566957188,17.38364178,162.56,162.39,531.46]
[1748566957392,17.41180546,162.54,162.39,531.46]
[1748566957587,2.0099,162.55,162.39,531.46]
[1748566958071,0.04247117,162.49,162.45,0.03877022]
[1748566958271,0.04247117,162.49,162.45,0.04657629]
[1748566959378,6.20247117,162.49,162.3,552.65598138]
[1748566959580,226.27274925,162.5,162.3,552.65598138]
[1748566959789,227.5,162.5,162.26,1.8507]
[1748566959997,17.41274925,162.45,162.27,17.41274925]
[1748566960293,17.41274925,162.45,162.26,1.8507]
[1748566960294,0.04343315,162.38,162.34,0.04693724]
[1748566960580,0.04094676,162.38,162.34,0.04211689]
[1748566961093,531.42,162.51,162.34,0.04211689]
[1748566961404,531.42,162.51,162.32,548.99274925]
[1748566961405,531.42,162.51,162.36,17.41274925]
[1748566961593,2.152,162.54,162.36,17.41274925]
[1748566961789,2.152,162.54,162.42,17.39733923]
[1748566962093,17.39225351,162.64,162.46,0.04557259]
[1748566962303,17.3765856,162.71,162.52,17.3765856]
[1748566962510,548.95394943,162.72,162.53,17.37394943]
[1748566962702,17.38001454,162.69,162.5,17.38001454]
[1748566962896,17.39174642,162.64,162.45,17.39174642]
[1748566963084,17.38170056,162.68,162.49,17.38170056]
[1748566963278,17.38170056,162.64,162.44,207.42]
[1748566963683,0.04569843,162.56,162.52,0.04660855]
[1748566963884,0.04569843,162.56,162.52,0.03911808]
[1748566971013,0.04569843,162.56,162.38,4.0864]
[1748566971208,17.40556267,162.55,162.38,4.0864]
[1748566971388,203.76,162.58,162.38,4.0864]
[1748566971589,17.40556267,162.56,162.38,66.0864]
[1748566971791,17.40866685,162.56,162.38,4.0864]
[1748566972011,0.04678636,162.49,162.45,0.04062587]
[1748566972190,0.04678636,162.49,162.45,0.04714593]
[1748566975420,2.0405,162.61,162.45,0.04714593]
[1748566975421,2.0405,162.61,162.48,17.38643631]
[1748566975715,2.0357,162.66,162.51,17.38168834]
[1748566975908,2.0357,162.66,162.52,17.37932729]
[1748566976289,0.03803015,162.61,162.57,0.03933894]
[1748566979112,0.03803015,162.61,162.57,17.41563714]
[1748566979320,2.0413,162.73,162.61,17.3762982]
[1748566980021,744.28154474,162.8,162.65,17.3762982]
[1748566980228,2.0819,162.78,162.7,0.04182159]
[1748566980521,2.0524,162.9,162.7,0.04182159]
[1748566980723,4.0572,162.9,162.78,0.04177692]
[1748566980914,4.0572,162.9,162.77,17.3762982]
[1748566981095,4.0572,162.9,162.82,0.04520502]
[1748566982801,531.16,163.03,162.82,0.04520502]
[1748566983006,17.3762982,162.98,162.91,0.04494177]
[1748566983307,3.45188765,162.97,162.74,531.42]
[1748566983503,17.3762982,162.9,162.74,531.42]
[1748566983802,6.2614,162.89,162.74,531.42]
[1748566984191,0.04341092,162.83,162.66,531.16]
[1748566984401,6.2614,162.89,162.66,531.16]
[1748566984402,17.3762982,162.84,162.66,531.16]
[1748566985395,0.04358581,162.77,162.73,0.04509103]
[1748566985591,0.04358581,162.77,162.73,0.04078541]
[1748566986225,17.3762982,162.74,162.55,548.3362982]
[1748566986424,4.2726,162.73,162.55,530.96]
[1748566987107,0.04668812,162.67,162.63,0.04651474]
[1748566987325,0.03993129,162.67,162.63,0.04324734]
[1748566987618,533.0194,162.79,162.65,17.3762982]
[1748566987903,4.2726,162.8,162.65,17.3762982]
[1748566988314,4.2726,162.8,162.64,213.4162982]
[1748566988598,0.04596518,162.74,162.7,0.04301742]
[1748566988804,0.04503535,162.74,162.7,0.0460686]
[1748566989507,4.0486,162.86,162.7,0.0460686]
[1748566989703,6.1425,162.86,162.68,17.34507616]
[1748566989905,6.1425,162.86,162.72,17.34507616]
[1748566990220,18.41377376,163.02,162.65,531.0]
[1748566990221,531.0,162.95,162.76,17.34507616]
[1748566990519,17.34507616,162.9,162.84,0.04230287]
[1748566990829,0.04099342,162.87,162.71,195.18]
[1748566991140,2.0939,162.94,162.79,17.34507616]
[1748566991325,4.0486,163.01,162.79,17.34507616]
[1748566991525,4.0486,163.01,162.76,530.88]
[1748566991722,0.04531143,162.9,162.87,0.04037155]
[1748566991935,0.04359156,162.9,162.87,0.04031481]
[1748566992513,17.29844442,163.09,162.89,17.29844442]
[1748566992715,3.9287,163.07,162.89,17.29844442]
[1748566992905,3.9287,163.07,162.87,530.88]
[1748566993136,3.9287,163.07,162.93,17.29844442]
[1748566993318,3.9287,163.07,162.87,530.88]
[1748566993623,0.04521246,162.99,162.95,0.04429273]
[1748566993809,0.04391881,162.99,162.95,0.04451942]
[1748566995224,0.04391881,162.99,162.78,530.58]
[1748566995527,17.29844442,162.99,162.78,549.73344442]
[1748566995807,17.29844442,162.96,162.78,549.73344442]
[1748566996007,17.29844442,162.96,162.78,532.435]
[1748566996213,0.04281438,162.89,162.85,0.04559062]
[1748566996417,0.04281438,162.89,162.85,0.03890252]
[1748566999705,1.9785,163.01,162.85,0.03890252]
[1748566999901,1.9785,163.01,162.78,550.0079389]
[1748567000706,0.04504282,162.91,162.88,0.0405361]
[1748567001022,1.9785,163.01,162.88,0.04359664]
[1748567001219,1.9785,163.01,162.83,19.4038493]
[1748567001220,1.9785,163.01,162.86,190.98]
[1748567001607,530.5,163.02,162.86,190.98]
[1748567001805,2.0015,163.07,162.87,62.0]
[1748567002015,2.0015,163.07,162.95,0.045216]
[1748567002238,2.0015,163.07,162.78,530.58]
[1748567002239,2.0015,163.07,162.82,190.54]
[1748567002530,2.0015,163.07,162.78,549.97090149]
[1748567002717,21.39240149,163.07,162.79,190.36]
[1748567003017,2.0015,163.07,162.79,190.36]
[1748567003218,0.04309012,162.95,162.79,190.36]
[1748567003412,0.0438349,162.89,162.85,0.0446457]
[1748567003604,0.0438349,162.89,162.85,0.04675747]
[1748567009714,3.9117,163.01,162.85,0.04675747]
[1748567009715,3.9117,163.01,162.85,6.18675747]
[1748567009929,1.9707,163.01,162.86,1.7654]
[1748567010135,1.9849,163.08,162.86,1.7654]
[1748567010334,1.9849,163.08,162.86,3.8129]
[1748567010717,1.9849,163.08,162.95,0.04516579]
[1748567010925,1.9849,163.08,162.99,0.04142717]
[1748567011128,1.9849,163.08,163.01,0.0413089]
[1748567011319,1.9849,163.08,163.02,0.0398261]
[1748567011526,1.9849,163.08,162.9,530.24]
[1748567011527,1.9849,163.08,163.03,0.03910153]
[1748567011718,1.9849,163.08,162.9,530.24]
[1748567012620,1.9849,163.08,162.97,0.04694643]
[1748567012811,1.9849,163.08,162.9,530.24]
[1748567013017,1.9849,163.08,163.0,0.03889504]
[1748567013322,0.03910153,163.05,163.0,0.03889504]
[1748567020423,0.03910153,163.05,163.0,17.33417522]
[1748567021726,2.1434,163.15,163.0,0.03889504]
[1748567021922,2.1434,163.15,163.02,17.29528018]
[1748567022325,2.1434,163.15,162.98,1.8005]
[1748567022726,2.1434,163.15,163.05,0.04154697]
[1748567022928,0.04036559,163.12,162.95,17.29528018]
[1748567023121,17.29528018,163.14,162.95,17.29528018]
[1748567023336,2.1434,163.15,162.82,529.9]
[1748567023337,17.29528018,163.1,162.82,529.9]
[1748567023533,17.29528018,163.13,162.82,529.9]
[1748567023534,17.29528018,163.06,162.87,19.34278018]
[1748567023826,3.9574,163.05,162.87,19.34278018]
[1748567024028,0.04562738,162.98,162.94,0.04610783]
[1748567024224,0.04562738,162.98,162.94,0.0409677]
[1748567026744,0.04562738,162.98,162.82,529.9]
[1748567026933,17.31563045,163.02,162.82,547.21563045]
[1748567027126,17.31540932,163.01,162.82,529.9]
[1748567027734,0.04629949,162.93,162.9,0.03987369]
[1748567027930,0.04036668,162.93,162.9,0.04540073]
[1748567029038,2.0497,163.04,162.9,0.04540073]
[1748567029331,1.9616,163.05,162.94,17.31540932]
[1748567029532,17.31540932,163.13,162.94,17.31540932]
[1748567029732,1.9591,163.12,162.94,17.31540932]
[1748567029932,17.31540932,163.14,162.94,17.31540932]
[1748567030140,0.04531711,163.06,163.02,0.043321]
[1748567030430,0.03963007,163.06,163.02,0.04167752]
[1748567030635,529.94,163.15,163.02,17.35708684]
[1748567030829,529.94,163.15,163.02,17.31540932]
[1748567031535,529.94,163.15,162.99,17.31540932]
[1748567031925,547.25540932,163.15,163.05,0.04660262]
[1748567032140,547.25540932,163.15,163.08,0.04522849]
[1748567032331,17.31540932,163.11,162.96,17.31540932]
[1748567032641,17.31540932,163.11,162.92,530.0]
[1748567032834,17.31540932,163.1,162.92,530.0]
[1748567033038,17.31540932,163.1,162.92,547.31540932]
[1748567033227,0.0414597,163.03,162.99,0.04271016]
[1748567033440,0.04190419,163.03,162.99,0.03924774]
[1748567040445,529.94,163.15,163.0,17.31540932]
[1748567040755,529.94,163.15,163.0,1.7578]
[1748567040944,17.31540932,163.14,162.97,188.9]
[1748567041441,17.31540932,163.14,163.04,0.0457213]
[1748567041641,17.31540932,163.14,163.07,0.04209422]
[1748567041942,17.31540932,163.1,162.94,19.07320932]
[1748567042138,17.31540932,163.1,162.94,1.7578]
[1748567042549,17.31540932,163.06,162.82,531.8589]
[1748567042757,17.31540932,163.02,162.82,533.6167]
[1748567042932,0.04037542,162.94,162.9,0.04582042]
[1748567043137,0.04037542,162.94,162.9,0.04358607]
[1748567043138,0.04308609,162.94,162.9,0.04358607]
[1748567045254,553.27890932,163.05,162.9,0.04358607]
[1748567045255,535.9635,163.05,162.9,0.04358607]
[1748567045462,535.9635,163.05,162.92,17.31540932]
[1748567046047,535.9635,163.05,162.9,17.31540932]
[1748567046348,535.9635,163.05,162.96,0.0450941]
[1748567046559,17.31540932,163.04,162.96,0.0450941]
[1748567047445,0.04574878,163.02,162.85,17.31540932]
[1748567047637,188.76,163.02,162.85,17.31540932]
[1748567048440,0.04723458,162.95,162.92,0.04587346]
[1748567048639,0.04270986,162.95,162.92,0.04406378]
[1748567050559,535.9635,163.05,162.92,0.04406378]
[1748567050757,535.9635,163.05,162.9,188.7]
[1748567051559,535.9635,163.05,162.96,0.03988541]
[1748567053151,553.27890932,163.05,162.96,0.03988541]
[1748567053347,535.9635,163.05,162.96,0.03988541]
[1748567053848,17.31540932,163.04,162.96,0.03988541]
[1748567054047,17.31540932,163.04,162.85,188.62]
[1748567054251,17.31540932,163.04,162.84,21.44940932]
[1748567054453,17.31540932,163.04,162.84,210.02940932]
[1748567054770,554.6035,163.05,162.81,17.31540932]
[1748567054968,2.46659978,163.04,162.81,17.31540932]
[1748567055164,0.04009447,162.95,162.92,0.03995378]
[1748567055449,0.0408519,162.95,162.81,17.31540932]
[1748567055645,2.0449,162.96,162.77,17.31540932]
[1748567055865,17.31540932,162.93,162.76,1.718]
[1748567056174,17.31540932,162.89,162.74,529.94]
[1748567056364,0.04720482,162.83,162.8,0.04154705]
[1748567056560,0.04710053,162.83,162.8,0.04176498]
[1748567056755,2.0449,162.96,162.81,17.31303181]
[1748567057760,0.04522405,162.9,162.87,0.04198466]
[1748567058551,2.0449,162.96,162.87,0.04198466]
[1748567058852,2.0019,162.98,162.87,0.04198466]
[1748567059046,2.0019,162.98,162.85,17.3047486]
[1748567059255,2.0019,162.98,162.85,17.30364872]
[1748567059453,2.0019,162.98,162.9,0.03872495]
[1748567060185,2.1358,163.01,162.9,0.03872495]
[1748567060372,2.1358,163.01,162.94,0.04142388]
[1748567061366,2.1395,163.03,162.94,0.04142388]
[1748567061553,2.0006,163.05,162.94,0.04142388]
[1748567061757,2.0006,163.05,162.98,0.03918043]
[1748567062465,188.4,163.04,162.81,17.29425139]
[1748567062647,17.29425139,163.0,162.82,1.716]
[1748567062853,17.29425139,162.96,162.77,4.227]
[1748567063057,17.29425139,162.96,162.77,1.716]
[1748567063253,2.1043,162.99,162.77,1.716]
[1748567063447,2.1043,162.99,162.86,0.04489581]
[1748567063448,0.03904148,162.9,162.86,0.04489581]
[1748567063653,0.04322766,162.9,162.86,0.04424158]
[1748567067074,17.29633234,163.08,162.89,17.29633234]
[1748567067263,2.1226,163.06,162.89,17.29519944]
[1748567067456,2.1226,163.06,162.9,1.716]
[1748567068058,2.1226,163.06,162.96,0.04563824]
[1748567068262,17.29411549,163.02,162.85,530.08]
[1748567068464,17.29411549,163.0,162.85,530.08]
[1748567068659,2.0314,162.99,162.85,530.08]
[1748567069062,2.0312,162.98,162.85,530.08]
[1748567069268,0.03948995,162.93,162.9,0.04369741]
[1748567077071,4.1662,163.05,162.9,0.04369741]
[1748567077372,4.1662,163.05,162.87,17.29411549]
[1748567077971,4.1662,163.05,162.91,17.29411549]
[1748567078168,4.1662,163.05,162.92,1.7155]
[1748567078368,4.1662,163.05,162.97,0.03973624]
[1748567078971,2.1226,163.06,162.97,0.03973624]
[1748567080683,19.41671549,163.06,162.97,0.03973624]
[1748567080875,0.03973624,163.03,162.86,81.00961549]
[1748567081079,19.41671549,163.06,162.86,81.00961549]
[1748567081080,189.9226,163.06,162.86,81.00961549]
[1748567081278,17.29411549,163.03,162.86,19.00961549]
[1748567081474,2.0142,163.02,162.86,19.00961549]
[1748567081678,2.0142,163.02,162.86,1.7155]
[1748567081877,0.03973624,162.96,162.92,0.04627977]
[1748567082077,0.03973624,162.96,162.92,0.03920754]
[1748567082390,17.29411549,162.95,162.77,529.96]
[1748567082602,529.96,163.0,162.8,17.29411549]
[1748567083003,529.96,163.0,162.84,17.29411549]
[1748567083183,529.96,163.0,162.85,1.7155]
[1748567083377,0.04661927,162.94,162.9,0.04111138]
[1748567083581,0.04661927,162.94,162.9,0.04445711]
[1748567085082,0.04661927,162.94,162.79,1.7139]
[1748567085281,17.29411549,162.96,162.79,1.7139]
[1748567085682,529.96,163.0,162.79,1.7139]
[1748567085880,17.29411549,162.99,162.82,17.29411549]
[1748567086078,0.03911747,162.92,162.89,0.03943774]
[1748567086284,0.04299701,162.92,162.89,0.04443401]
[1748567089299,0.04299701,162.92,162.79,19.00801549]
[1748567089583,17.29411549,162.96,162.79,1.7139]
[1748567090284,0.04588886,162.89,162.86,0.04192495]
[1748567090488,0.04134891,162.89,162.86,0.04605866]
[1748567093005,0.04134891,162.89,162.77,529.96]
[1748567093220,187.36,162.95,162.72,17.29411549]
[1748567093221,17.29411549,162.88,162.72,17.29411549]
[1748567093399,3.9689,162.87,162.7,1.7585]
[1748567093711,17.29411549,162.84,162.69,679.0279509]
[1748567093908,17.29411549,162.8,162.69,530.14]
[1748567094107,0.0406329,162.78,162.62,187.34]
[1748567094395,17.29411549,162.8,162.61,547.43411549]
[1748567094999,0.04392581,162.72,162.69,0.04338245]
[1748567095190,0.03897441,162.72,162.69,0.04065726]
[1748567096413,0.03897441,162.72,162.64,13.24]
[1748567097494,17.29411549,162.7,162.66,0.04505198]
[1748567097721,17.29411549,162.7,162.52,530.34]
[1748567097903,17.29411549,162.66,162.62,0.79]
[1748567098091,17.29411549,162.66,162.52,530.34]
[1748567098297,17.29411549,162.69,162.52,530.34]
[1748567098688,0.04483737,162.62,162.59,0.04327767]
[1748567098891,0.04606208,162.62,162.59,0.04006098]
[1748567099621,0.04606208,162.62,162.48,2.0587]
[1748567099820,17.39861911,162.59,162.4,534.7338]
[1748567100024,187.28,162.65,162.41,2.0622]
[1748567100709,0.04151556,162.55,162.51,0.04623584]
[1748567100908,17.39861911,162.6,162.51,0.04120598]
[1748567101221,17.39861911,162.6,162.41,2.0622]
[1748567101222,0.03938983,162.55,162.54,0.04086688]
[1748567101415,530.34,162.7,162.43,17.39861911]
[1748567101416,0.04110558,162.56,162.53,0.03928683]
[1748567101606,530.34,162.7,162.53,0.04430443]
[1748567101795,530.34,162.7,162.47,17.39861911]
[1748567101796,187.18,162.69,162.47,17.39861911]
[1748567101990,17.39861911,162.67,162.47,17.39861911]
[1748567102213,17.39861911,162.67,162.41,2.0622]
[1748567102214,187.18,162.69,162.43,17.39861911]
[1748567102504,17.39861911,162.64,162.44,79.39861911]
[1748567102691,0.0445596,162.56,162.52,0.04564751]
[1748567102902,0.04209697,162.56,162.52,0.04366293]
[1748567104096,17.39861911,162.55,162.41,2.0622]
[1748567104700,2.1426,162.54,162.41,2.0622]
[1748567105101,0.03966933,162.49,162.46,0.04552207]
[1748567107112,2.1426,162.59,162.46,0.04552207]
[1748567107311,2.1426,162.59,162.44,17.39861911]
[1748567107517,531.02,162.68,162.48,17.39861911]
[1748567107715,17.39861911,162.65,162.49,2.0803]
[1748567107915,17.39861911,162.61,162.44,17.39861911]
[1748567108114,0.04166506,162.54,162.51,0.04043014]
[1748567108297,0.04379533,162.54,162.51,0.0470671]
[1748567109796,0.04379533,162.54,162.41,2.0622]
[1748567109995,1.9673,162.56,162.41,2.0622]
[1748567110199,1.9673,162.56,162.34,17.39861911]
[1748567110200,17.39861911,162.54,162.34,17.39861911]
[1748567110403,4.0166,162.56,162.35,2.0803]
[1748567110624,4.0166,162.56,162.42,17.39861911]
[1748567110903,0.03907722,162.51,162.47,0.04050558]
[1748567111109,0.04576371,162.51,162.47,0.04491782]
[1748567112225,23.60438282,162.51,162.37,2.0511]
[1748567112420,17.39861911,162.49,162.37,2.0511]
[1748567112617,17.39861911,162.49,162.33,531.26]